fUST/lending_fUST_20250101
["ID","MTS","AMOUNT","RATE_DAILY","PERIOD"]
[347296523,1735665042838,-513.28845624,0.00019178,2]
[347296524,1735665042848,-511.8308608,0.00019178,2]
[347296525,1735665042857,-500.0,0.00019178,2]
[347296526,1735665042867,-500.0,0.00019178,2]
[347296527,1735665042876,-500.0,0.00019178,2]
[347296528,1735665042885,-963.26,0.00019178,2]
[347296529,1735665042895,-500.0,0.00019178,2]
[347296531,1735665042905,-2378.66,0.00019178,2]
[347296533,1735665042914,-500.0,0.00019178,2]
[347296534,1735665042923,-570.4,0.00019178,2]
[347296536,1735665042932,-500.0,0.00019178,2]
[347296538,1735665042942,-510.79,0.00019178,2]
[347296539,1735665042951,-500.0,0.00019178,2]
[347296540,1735665042961,-500.0,0.00019178,2]
[347296541,1735665042972,-874.71,0.00019178,2]
[347296542,1735665042981,-396.44927889,0.00019178,2]
[347296543,1735665042990,-500.0,0.00019178,2]
[347296545,1735665043000,-650.79,0.00019178,2]
[347296547,1735665043009,-500.0,0.00019178,2]
[347296549,1735665043018,-1054.69,0.00019178,2]
[347296550,1735665043027,-500.0,0.00019178,2]
[347296551,1735665043036,-2086.75,0.00019178,2]
[347296552,1735665043046,-500.0,0.00019178,2]
[347296553,1735665043055,-500.0,0.00019178,2]
[347296554,1735665043065,-500.0,0.00019178,2]
[347296556,1735665043075,-500.0,0.00019178,2]
[347296557,1735665043083,-1109.61,0.00019178,2]
[347296558,1735665043093,-152.0,0.00019237,2]
[347296559,1735665043101,-697.58144011,0.00019252,2]
[347296560,1735665043111,-697.58144011,0.00019431,2]
[347296561,1735665043120,-291.49637281,0.00019451,2]
[347296562,1735665043130,-601.0055001,0.00019451,2]
[347296563,1735665043139,-500.0,0.00019452,3]
[347296564,1735665043148,-160.76815806,0.00019452,3]
[347296566,1735665043158,-367.13289386,0.00019452,3]
[347296568,1735665043168,-894.59,0.00019452,3]
[347296570,1735665043178,-634.98,0.00019452,3]
[347296571,1735665043188,-500.0,0.00019452,3]
[347296572,1735665043198,-500.0,0.00019452,3]
[347296573,1735665043207,-500.0,0.00019452,3]
[347296574,1735665043218,-616.51982857,0.00019452,3]
[347296575,1735665043227,-500.0,0.00019452,3]
[347296576,1735665043237,-500.0,0.00019452,3]
[347296577,1735665043246,-500.0,0.00019452,3]
[347296578,1735665043255,-181.29679314,0.00019452,3]
[347296579,1735665043265,-500.0,0.00019452,3]
[347296580,1735665043274,-380.38786708,0.00019452,3]
[347296581,1735665043283,-188.0,0.00019452,2]
[347296582,1735665043293,-438.17811798,0.00019452,3]
[347296584,1735665043302,-501.70776864,0.00019452,3]
[347296585,1735665043311,-587.06731227,0.00019452,3]
[347296586,1735665043321,-500.0,0.00019452,3]
[347296587,1735665043330,-500.0,0.00019452,3]
[347296588,1735665043339,-500.0,0.00019452,3]
[347296589,1735665043348,-500.0,0.00019452,3]
[347296590,1735665043358,-500.0,0.00019452,3]
[347296591,1735665043367,-500.0,0.00019452,3]
[347296592,1735665043377,-500.0,0.00019452,3]
[347296593,1735665043386,-500.0,0.00019452,3]
[347296594,1735665043396,-500.0,0.00019452,3]
[347296595,1735665043405,-500.0,0.00019452,3]
[347296596,1735665043414,-607.75,0.00019452,3]
[347296597,1735665043424,-500.0,0.00019452,3]
[347296598,1735665043433,-500.0,0.00019452,3]
[347296599,1735665043443,-529.34,0.00019452,3]
[347296600,1735665043452,-599.41,0.00019452,3]
[347296601,1735665043462,-500.0,0.00019452,3]
[347296602,1735665043476,-500.0,0.00019452,3]
[347296603,1735665043485,-492.28703826,0.00019452,3]
[347296604,1735665043496,-500.0,0.00019452,3]
[347296605,1735665043506,-960.01,0.00019452,3]
[347296606,1735665043516,-500.0,0.00019452,3]
[347296607,1735665043525,-619.23,0.00019452,3]
[347296608,1735665043535,-500.0,0.00019452,3]
[347296609,1735665043547,-500.0,0.00019452,3]
[347296610,1735665043557,-500.0,0.00019452,3]
[347296611,1735665043567,-500.0,0.00019452,3]
[347296612,1735665043576,-500.0,0.00019452,3]
[347296613,1735665043585,-500.0,0.00019452,3]
[347296614,1735665043595,-500.0,0.00019452,3]
[347296615,1735665043604,-500.0,0.00019452,3]
[347296616,1735665043613,-500.0,0.00019452,3]
[347296617,1735665043622,-505.95060473,0.00019452,3]
[347296618,1735665043631,-958.05,0.00019452,3]
[347296619,1735665043641,-500.0,0.00019452,3]
[347296620,1735665043651,-500.0,0.00019452,3]
[347296621,1735665043660,-1787.15,0.00019452,3]
[347296622,1735665043670,-500.0,0.00019452,3]
[347296623,1735665043679,-500.0,0.00019452,3]
[347296624,1735665043688,-500.0,0.00019452,3]
[347296625,1735665043697,-500.0,0.00019452,3]
[347296626,1735665043707,-500.0,0.00019452,3]
[347296627,1735665043717,-500.0,0.00019452,3]
[347296628,1735665043726,-284.81273788,0.00019452,3]
[347296629,1735665043735,-503.26527972,0.00019452,3]
[347296630,1735665043744,-500.0,0.00019452,3]
[347296631,1735665043754,-500.0,0.00019452,3]
[347296632,1735665043763,-500.0,0.00019452,3]
[347296633,1735665043772,-500.0,0.00019452,3]
[347296634,1735665043781,-500.0,0.00019452,3]
[347296635,1735665043791,-725.25,0.00019452,3]
[347296636,1735665043800,-500.0,0.00019452,3]
[347296637,1735665043809,-500.0,0.00019452,3]
[347296638,1735665043819,-502.31500196,0.00019452,3]
[347296639,1735665043828,-713.09,0.00019452,3]
[347296640,1735665043838,-944.33,0.00019452,3]
[347296641,1735665043847,-500.0,0.00019452,3]
[347296642,1735665043856,-500.0,0.00019452,3]
[347296643,1735665043865,-500.0,0.00019452,3]
[347296644,1735665043874,-500.0,0.00019452,3]
[347296645,1735665043883,-500.0,0.00019452,3]
[347296646,1735665043892,-500.0,0.00019452,3]
[347296647,1735665043901,-500.0,0.00019452,3]
[347296648,1735665043910,-305.91207776,0.00019452,3]
[347296649,1735665043920,-500.0,0.00019452,3]
[347296650,1735665043929,-1127.56,0.00019452,3]
[347296651,1735665043938,-500.0,0.00019452,3]
[347296652,1735665043947,-498.51273859,0.00019452,3]
[347296653,1735665043956,-500.0,0.00019452,3]
[347296654,1735665043966,-500.0,0.00019452,3]
[347296655,1735665043976,-500.0,0.00019452,3]
[347296656,1735665043985,-533.47,0.00019452,3]
[347296657,1735665043995,-500.0,0.00019452,3]
[347296658,1735665044005,-507.36927411,0.00019452,3]
[347296659,1735665044014,-500.0,0.00019452,3]
[347296660,1735665044023,-500.0,0.00019452,3]
[347296661,1735665044032,-500.0,0.00019452,3]
[347296662,1735665044041,-509.40889844,0.00019452,3]
[347296663,1735665044050,-560.98,0.00019452,2]
[347296664,1735665044059,-500.0,0.00019452,3]
[347296665,1735665044068,-500.0,0.00019452,3]
[347296666,1735665044077,-500.0,0.00019452,3]
[347296667,1735665044086,-500.0,0.00019452,3]
[347296668,1735665044096,-500.0,0.00019452,3]
[347296669,1735665044105,-500.0,0.00019452,3]
[347296670,1735665044115,-512.38085151,0.00019452,3]
[347296671,1735665044124,-500.0,0.00019452,3]
[347296672,1735665044133,-500.0,0.00019452,2]
[347296673,1735665044143,-500.0,0.00019452,3]
[347296674,1735665044154,-498.79066018,0.00019452,3]
[347296675,1735665044166,-500.0,0.00019452,3]
[347296676,1735665044177,-666.38,0.00019452,3]
[347296677,1735665044187,-500.0,0.00019452,3]
[347296678,1735665044196,-500.0,0.00019452,3]
[347296679,1735665044206,-500.0,0.00019452,3]
[347296680,1735665044215,-9882.34,0.00019452,3]
[347296681,1735665044225,-500.0,0.00019452,3]
[347296682,1735665044235,-500.0,0.00019452,3]
[347296683,1735665044244,-500.0,0.00019452,3]
[347296684,1735665044253,-500.0,0.00019452,3]
[347296685,1735665044262,-500.0,0.00019452,3]
[347296686,1735665044271,-500.0,0.00019452,3]
[347296687,1735665044280,-512.38,0.00019452,3]
[347296688,1735665044290,-500.0,0.00019452,3]
[347296689,1735665044299,-500.0,0.00019452,3]
[347296690,1735665044308,-500.0,0.00019452,3]
[347296691,1735665044318,-682.37,0.00019452,3]
[347296692,1735665044327,-500.0,0.00019452,3]
[347296693,1735665044336,-542.28048342,0.00019452,3]
[347296694,1735665044345,-484.2170977,0.00019452,3]
[347296695,1735665044354,-500.0,0.00019452,3]
[347296696,1735665044363,-500.0,0.00019452,3]
[347296697,1735665044373,-500.0,0.00019452,3]
[347296698,1735665044382,-648.0143002,0.00019452,3]
[347296699,1735665044391,-500.0,0.00019452,3]
[347296700,1735665044400,-500.0,0.00019452,3]
[347296701,1735665044409,-500.0,0.00019452,3]
[347296702,1735665044418,-1130.05,0.00019452,3]
[347296703,1735665044428,-500.0,0.00019452,3]
[347296704,1735665044437,-500.0,0.00019452,3]
[347296705,1735665044447,-500.0,0.00019452,3]
[347296706,1735665044456,-1525.91,0.00019452,3]
[347296707,1735665044469,-500.0,0.00019452,3]
[347296708,1735665044478,-500.0,0.00019452,3]
[347296709,1735665044487,-500.0,0.00019452,3]
[347296710,1735665044496,-500.0,0.00019452,3]
[347296711,1735665044595,-558.85,0.00019452,3]
[347296712,1735665044606,-502.87933699,0.00019452,3]
[347296713,1735665044615,-500.0,0.00019452,3]
[347296714,1735665044624,-500.0,0.00019452,3]
[347296715,1735665044633,-500.0,0.00019452,3]
[347296716,1735665044643,-500.0,0.00019452,3]
[347296717,1735665044653,-1310.93,0.00019452,3]
[347296718,1735665044662,-500.0,0.00019452,3]
[347296719,1735665044671,-500.0,0.00019452,3]
[347296720,1735665044680,-500.0,0.00019452,3]
[347296721,1735665044690,-516.5,0.00019452,3]
[347296722,1735665044699,-500.0,0.00019452,3]
[347296723,1735665044709,-500.0,0.00019452,3]
[347296724,1735665044721,-500.0,0.00019452,3]
[347296725,1735665044730,-500.0,0.00019452,3]
[347296726,1735665044739,-500.0,0.00019452,3]
[347296727,1735665044748,-500.0,0.00019452,3]
[347296728,1735665044758,-500.0,0.00019452,3]
[347296729,1735665044769,-500.0,0.00019452,3]
[347296730,1735665044778,-500.0,0.00019452,3]
[347296731,1735665044793,-543.54,0.00019452,3]
[347296732,1735665044802,-769.83,0.00019452,3]
[347296733,1735665044812,-500.0,0.00019452,3]
[347296734,1735665044823,-500.0,0.00019452,3]
[347296735,1735665044832,-500.0,0.00019452,3]
[347296736,1735665044842,-500.0,0.00019452,3]
[347296737,1735665044851,-473.22711507,0.00019452,3]
[347296738,1735665044861,-500.0,0.00019452,3]
[347296739,1735665044871,-500.0,0.00019452,3]
[347296740,1735665044881,-627.66,0.00019452,3]
[347296741,1735665044891,-500.0,0.00019452,3]
[347296742,1735665044901,-1289.83,0.00019452,3]
[347296743,1735665044911,-500.0,0.00019452,3]
[347296744,1735665044927,-500.0,0.00019452,3]
[347296745,1735665044937,-553.41,0.00019452,3]
[347296746,1735665044946,-888.44,0.00019452,3]
[347296747,1735665044956,-913.82,0.00019452,3]
[347296748,1735665044965,-500.0,0.00019452,3]
[347296749,1735665044974,-423.17467954,0.00019452,3]
[347296750,1735665044983,-505.65054291,0.00019452,3]
[347296751,1735665044992,-500.0,0.00019452,3]
[347296752,1735665045001,-500.0,0.00019452,3]
[347296753,1735665045012,-689.33,0.00019452,3]
[347296754,1735665045021,-500.0,0.00019452,3]
[347296755,1735665045029,-500.0,0.00019452,3]
[347296756,1735665045039,-500.0,0.00019452,3]
[347296757,1735665045048,-500.0,0.00019452,3]
[347296758,1735665045057,-500.0,0.00019452,3]
[347296759,1735665045067,-6404.05,0.00019452,3]
[347296760,1735665045077,-307.47656864,0.00019452,3]
[347296761,1735665045086,-500.0,0.00019452,3]
[347296762,1735665045095,-1694.83,0.00019452,3]
[347296763,1735665045104,-500.0,0.00019452,3]
[347296764,1735665045113,-545.13979332,0.00019452,3]
[347296765,1735665045123,-504.6233686,0.00019452,3]
[347296766,1735665045132,-500.0,0.00019452,3]
[347296767,1735665045141,-500.0,0.00019452,3]
[347296768,1735665045150,-473.91238707,0.00019452,3]
[347296769,1735665045159,-441.70720088,0.00019452,3]
[347296770,1735665045169,-730.85,0.00019452,3]
[347296771,1735665045178,-500.0,0.00019452,3]
[347296772,1735665045188,-500.0,0.00019452,3]
[347296773,1735665045198,-500.0,0.00019452,3]
[347296774,1735665045207,-500.0,0.00019452,3]
[347296775,1735665045217,-500.0,0.00019452,3]
[347296776,1735665045227,-239.78521782,0.00019452,3]
[347296777,1735665045237,-500.0,0.00019452,3]
[347296778,1735665045247,-500.0,0.00019452,3]
[347296779,1735665045256,-500.0,0.00019452,3]
[347296780,1735665045265,-344.25921575,0.00019452,3]
[347296781,1735665045274,-500.0,0.00019452,3]
[347296782,1735665045283,-991.1,0.00019452,3]
[347296783,1735665045293,-500.0,0.00019452,3]
[347296784,1735665045302,-500.0,0.00019452,3]
[347296785,1735665045312,-583.45079829,0.00019452,3]
[347296786,1735665045321,-1665.4,0.00019452,3]
[347296787,1735665045330,-3433.1,0.00019452,3]
[347296788,1735665045340,-500.0,0.00019452,3]
[347296789,1735665045349,-500.0,0.00019452,3]
[347296790,1735665045358,-500.0,0.00019452,3]
[347296791,1735665045368,-500.0,0.00019452,3]
[347296792,1735665045377,-500.0,0.00019452,3]
[347296793,1735665045386,-500.0,0.00019452,3]
[347296794,1735665045395,-500.0,0.00019452,3]
[347296795,1735665045404,-500.0,0.00019452,3]
[347296796,1735665045414,-500.0,0.00019452,3]
[347296797,1735665045423,-500.0,0.00019452,3]
[347296798,1735665045433,-915.57,0.00019452,3]
[347296799,1735665045448,-1142.69,0.00019452,3]
[347296800,1735665045465,-500.0,0.00019452,3]
[347296801,1735665045478,-500.0,0.00019452,3]
[347296802,1735665045491,-500.0,0.00019452,3]
[347296803,1735665045505,-500.0,0.00019452,3]
[347296804,1735665045520,-500.0,0.00019452,3]
[347296805,1735665045533,-959.18,0.00019452,3]
[347296806,1735665045550,-605.3447252,0.00019452,3]
[347296807,1735665045564,-500.0,0.00019452,3]
[347296808,1735665045577,-500.0,0.00019452,3]
[347296809,1735665045590,-500.0,0.00019452,3]
[347296810,1735665045605,-500.0,0.00019452,3]
[347296811,1735665045618,-1588.6,0.00019452,3]
[347296812,1735665045628,-500.0,0.00019452,3]
[347296813,1735665045640,-535.8,0.00019452,3]
[347296814,1735665045654,-648.37,0.00019452,3]
[347296815,1735665045668,-500.0,0.00019452,3]
[347296816,1735665045682,-565.15,0.00019452,3]
[347296817,1735665045697,-818.49,0.00019452,3]
[347296818,1735665045712,-1764.41,0.00019452,3]
[347296819,1735665045725,-500.0,0.00019452,3]
[347296821,1735665045736,-500.0,0.00019452,3]
[347296824,1735665045751,-500.0,0.00019452,3]
[347296826,1735665045766,-500.0,0.00019452,3]
[347296828,1735665045777,-2158.29,0.00019452,3]
[347296831,1735665045790,-500.0,0.00019452,3]
[347296833,1735665045804,-3173.88,0.00019452,3]
[347296835,1735665045815,-500.0,0.00019452,3]
[347296837,1735665045826,-502.40575722,0.00019452,3]
[347296839,1735665045838,-500.0,0.00019452,3]
[347296842,1735665045850,-48070.08,0.00019452,3]
[347296844,1735665045863,-503.88529704,0.00019452,3]
[347296845,1735665045875,-1009.69,0.00019452,3]
[347296846,1735665045887,-500.0,0.00019452,3]
[347296847,1735665045898,-1142.14,0.00019452,3]
[347296848,1735665045910,-2159.63,0.00019452,3]
[347296849,1735665045923,-519.47992898,0.00019452,3]
[347296850,1735665045934,-500.0,0.00019452,3]
[347296851,1735665045946,-992.37,0.00019452,3]
[347296852,1735665045958,-500.0,0.00019452,3]
[347296853,1735665045971,-1741.6,0.00019452,3]
[347296854,1735665045983,-500.0,0.00019452,3]
[347296855,1735665045995,-1116.32,0.00019452,3]
[347296856,1735665046007,-500.0,0.00019452,3]
[347296857,1735665046020,-628.1552986,0.00019452,3]
[347296858,1735665046032,-6066.18,0.00019452,3]
[347296859,1735665046044,-1258.11,0.00019452,3]
[347296860,1735665046056,-1088.29,0.00019452,3]
[347296861,1735665046068,-894.97,0.00019452,3]
[347296862,1735665046080,-500.0,0.00019452,3]
[347296863,1735665046092,-500.0,0.00019452,3]
[347296864,1735665046103,-500.0,0.00019452,3]
[347296865,1735665046115,-500.0,0.00019452,3]
[347296866,1735665046127,-500.0,0.00019452,3]
[347296867,1735665046140,-500.0,0.00019452,3]
[347296868,1735665046152,-500.0,0.00019452,3]
[347296869,1735665046164,-500.000002,0.00019452,3]
[347296870,1735665046175,-500.0,0.00019452,3]
[347296871,1735665046188,-1289.07,0.00019452,3]
[347296872,1735665046200,-500.0,0.00019452,3]
[347296873,1735665046212,-500.0,0.00019452,3]
[347296874,1735665046225,-500.0,0.00019452,2]
[347296875,1735665046237,-1200.41,0.00019452,3]
[347296876,1735665046250,-500.0,0.00019452,3]
[347296877,1735665046261,-1196.82,0.00019452,3]
[347296878,1735665046273,-547.89,0.00019452,3]
[347296879,1735665046285,-500.0,0.00019452,3]
[347296880,1735665046297,-500.0,0.00019452,3]
[347296881,1735665046309,-970.37,0.00019452,3]
[347296882,1735665046322,-909.69,0.00019452,3]
[347296883,1735665046333,-500.0,0.00019452,3]
[347296884,1735665046345,-500.0,0.00019452,3]
[347296885,1735665046356,-500.0,0.00019452,3]
[347296886,1735665046369,-500.0,0.00019452,3]
[347296887,1735665046380,-911.65,0.00019452,3]
[347296888,1735665046392,-500.0,0.00019452,3]
[347296889,1735665046404,-652.4,0.00019452,3]
[347296890,1735665046416,-4416.32,0.00019452,3]
[347296891,1735665046429,-507.55,0.00019452,3]
[347296892,1735665046441,-500.0,0.00019452,3]
[347296893,1735665046454,-257.79901667,0.00019452,3]
[347296894,1735665046465,-500.0,0.00019452,3]
[347296895,1735665046477,-591.46,0.00019452,3]
[347296896,1735665046486,-10250.27,0.00019452,3]
[347296897,1735665046623,-500.0,0.00019452,3]
[347296898,1735665046661,-1359.6,0.00019452,3]
[347296899,1735665046670,-593.94388458,0.00019452,3]
[347296900,1735665046679,-500.0,0.00019452,3]
[347296901,1735665046689,-500.0,0.00019452,3]
[347296902,1735665046698,-1636.8,0.00019452,3]
[347296903,1735665046708,-3361.62,0.00019452,3]
[347296904,1735665046719,-500.0,0.00019452,3]
[347296905,1735665046728,-998.59,0.00019452,3]
[347296906,1735665046737,-500.0,0.00019452,3]
[347296907,1735665046747,-500.0,0.00019452,3]
[347296908,1735665046756,-963.26,0.00019452,3]
[347296909,1735665046765,-500.0,0.00019452,3]
[347296911,1735665046775,-2378.66,0.00019452,3]
[347296913,1735665046784,-500.0,0.00019452,3]
[347296915,1735665046793,-570.4,0.00019452,3]
[347296916,1735665046802,-500.0,0.00019452,3]
[347296917,1735665046812,-510.79,0.00019452,3]
[347296919,1735665046821,-500.0,0.00019452,3]
[347296921,1735665046830,-874.71,0.00019452,3]
[347296923,1735665046840,-500.0,0.00019452,3]
[347296925,1735665046850,-650.79,0.00019452,3]
[347296926,1735665046859,-1054.69,0.00019452,3]
[347296927,1735665046868,-500.0,0.00019452,3]
[347296929,1735665046878,-2086.75,0.00019452,3]
[347296930,1735665046887,-500.0,0.00019473,2]
[347296932,1735665046896,-500.0,0.00019473,2]
[347296934,1735665046906,-151.00800485,0.00019561,2]
[347296935,1735665046915,-697.58144011,0.0001961,2]
[347296936,1735665046924,-1000.0,0.00019721,2]
[347296937,1735665046933,-500.0,0.00019721,2]
[347296938,1735665046943,-10369.85477377,0.00019722,2]
[347296939,1735665046952,-500.0,0.00019726,3]
[347296940,1735665046962,-894.59,0.00019726,3]
[347296941,1735665046971,-634.98,0.00019726,3]
[347296942,1735665046981,-500.0,0.00019726,3]
[347296943,1735665046990,-500.0,0.00019726,3]
[347296944,1735665046999,-500.0,0.00019726,3]
[347296945,1735665047009,-500.0,0.00019726,3]
[347296946,1735665047018,-500.0,0.00019726,3]
[347296947,1735665047028,-500.0,0.00019726,3]
[347296948,1735665047037,-500.0,0.00019726,3]
[347296949,1735665047047,-188.0,0.00019726,2]
[347296950,1735665047056,-500.0,0.00019726,3]
[347296951,1735665047065,-500.0,0.00019726,3]
[347296952,1735665047075,-500.0,0.00019726,3]
[347296953,1735665047084,-500.0,0.00019726,3]
[347296954,1735665047093,-500.0,0.00019726,3]
[347296955,1735665047102,-500.0,0.00019726,3]
[347296956,1735665047112,-500.0,0.00019726,3]
[347296957,1735665047121,-500.0,0.00019726,3]
[347296958,1735665047131,-500.0,0.00019726,3]
[347296959,1735665047140,-607.75,0.00019726,3]
[347296960,1735665047149,-500.0,0.00019726,3]
[347296961,1735665047159,-529.34,0.00019726,3]
[347296962,1735665047168,-500.0,0.00019726,3]
[347296963,1735665047177,-960.01,0.00019726,3]
[347296964,1735665047186,-619.23,0.00019726,3]
[347296965,1735665047195,-500.0,0.00019726,3]
[347296966,1735665047205,-505.31059276,0.00019726,3]
[347296967,1735665047214,-500.0,0.00019726,3]
[347296968,1735665047224,-500.0,0.00019726,3]
[347296969,1735665047234,-522.9067441,0.00019726,3]
[347296970,1735665047243,-500.0,0.00019726,3]
[347296971,1735665047252,-500.0,0.00019726,3]
[347296972,1735665047262,-500.0,0.00019726,3]
[347296973,1735665047271,-958.05,0.00019726,3]
[347296974,1735665047280,-500.0,0.00019726,3]
[347296975,1735665047289,-1787.15,0.00019726,3]
[347296976,1735665047298,-500.0,0.00019726,3]
[347296977,1735665047307,-500.0,0.00019726,3]
[347296978,1735665047316,-500.0,0.00019726,3]
[347296979,1735665047325,-500.0,0.00019726,3]
[347296980,1735665047334,-500.0,0.00019726,3]
[347296981,1735665047343,-500.0,0.00019726,3]
[347296982,1735665047353,-503.12171205,0.00019726,3]
[347296983,1735665047362,-500.0,0.00019726,3]
[347296984,1735665047371,-500.0,0.00019726,3]
[347296985,1735665047380,-500.0,0.00019726,3]
[347296986,1735665047390,-725.25,0.00019726,3]
[347296987,1735665047399,-500.0,0.00019726,3]
[347296988,1735665047409,-500.0,0.00019726,3]
[347296989,1735665047418,-713.09,0.00019726,3]
[347296990,1735665047427,-944.33,0.00019726,3]
[347296991,1735665047437,-500.0,0.00019726,3]
[347296992,1735665047447,-500.0,0.00019726,3]
[347296993,1735665047456,-500.0,0.00019726,3]
[347296994,1735665047467,-500.0,0.00019726,3]
[347296995,1735665047479,-500.0,0.00019726,3]
[347296996,1735665047488,-591.71422377,0.00019726,3]
[347296997,1735665047498,-500.0,0.00019726,3]
[347296999,1735665047507,-500.0,0.00019726,3]
[347297000,1735665047517,-1127.56,0.00019726,3]
[347297001,1735665047526,-542.51371461,0.00019726,3]
[347297002,1735665047534,-500.0,0.00019726,3]
[347297003,1735665047545,-500.0,0.00019726,3]
[347297004,1735665047554,-500.0,0.00019726,3]
[347297006,1735665047564,-533.47,0.00019726,3]
[347297008,1735665047573,-500.0,0.00019726,3]
[347297009,1735665047582,-500.0,0.00019726,3]
[347297010,1735665047591,-500.0,0.00019726,3]
[347297011,1735665047600,-560.98,0.00019726,2]
[347297012,1735665047609,-500.0,0.00019726,3]
[347297013,1735665047619,-500.0,0.00019726,3]
[347297014,1735665047628,-500.0,0.00019726,3]
[347297015,1735665047637,-500.0,0.00019726,3]
[347297016,1735665047645,-640.84134407,0.00019726,3]
[347297017,1735665047655,-500.0,0.00019726,3]
[347297018,1735665047664,-500.0,0.00019726,3]
[347297020,1735665047673,-500.0,0.00019726,2]
[347297022,1735665047682,-500.0,0.00019726,3]
[347297024,1735665047691,-500.0,0.00019726,3]
[347297025,1735665047701,-666.38,0.00019726,3]
[347297026,1735665047710,-508.0383041,0.00019726,3]
[347297028,1735665047720,-500.0,0.00019726,3]
[347297030,1735665047730,-9882.34,0.00019726,3]
[347297032,1735665047739,-500.0,0.00019726,3]
[347297033,1735665047748,-637.7871382,0.00019726,3]
[347297035,1735665047758,-500.0,0.00019726,3]
[347297037,1735665047767,-507.94560489,0.00019726,3]
[347297038,1735665047776,-500.0,0.00019726,3]
[347297039,1735665047784,-512.38,0.00019726,3]
[347297040,1735665047794,-500.0,0.00019726,3]
[347297041,1735665047803,-500.0,0.00019726,3]
[347297042,1735665047812,-500.0,0.00019726,3]
[347297043,1735665047821,-682.37,0.00019726,3]
[347297044,1735665047831,-500.0,0.00019726,3]
[347297045,1735665047840,-500.0,0.00019726,3]
[347297046,1735665047850,-500.0,0.00019726,3]
[347297047,1735665047859,-500.0,0.00019726,3]
[347297048,1735665047868,-500.0,0.00019726,3]
[347297049,1735665047878,-503.08783653,0.00019726,3]
[347297050,1735665047890,-1130.05,0.00019726,3]
[347297051,1735665047902,-480.93022324,0.00019726,3]
[347297052,1735665047915,-500.0,0.00019726,3]
[347297053,1735665047927,-500.0,0.00019726,3]
[347297054,1735665047938,-1525.91,0.00019726,3]
[347297055,1735665047948,-500.0,0.00019726,3]
[347297056,1735665047957,-500.0,0.00019726,3]
[347297057,1735665047967,-500.0,0.00019726,3]
[347297058,1735665047977,-558.85,0.00019726,3]
[347297059,1735665047986,-502.48432463,0.00019726,3]
[347297060,1735665047995,-500.0,0.00019726,3]
[347297061,1735665048005,-500.0,0.00019726,3]
[347297062,1735665048015,-500.0,0.00019726,3]
[347297063,1735665048024,-1310.93,0.00019726,3]
[347297064,1735665048034,-500.0,0.00019726,3]
[347297065,1735665048043,-500.0,0.00019726,3]
[347297066,1735665048053,-516.5,0.00019726,3]
[347297067,1735665048064,-500.0,0.00019726,3]
[347297068,1735665048073,-500.0,0.00019726,3]
[347297069,1735665048083,-500.0,0.00019726,3]